Cogmind - Beta 14 @@@ ROGUE MODE // 2024.08.14 @ 08:01:48 Player: Zeia Result: Destroyed self with Rocket Launcher Performance ------------- Evolutions (0) 0 Regions Visited (2) 400 Robots Destroyed (25) 125 Value Destroyed (663) 663 Prototype IDs (12) 240 Alien Tech Used (0) 0 Bonus (0) 0 TOTAL SCORE: 1428 Bonus ------- None Cogmind --------- Core Integrity 0/250 Matter 184/300 Energy 100/100 System Corruption 0% Temperature Cool (0) Movement Rolling (115) Ox1 Location -10/Subcaves Parts ------- > --- POWER (1) -------- (None) > --- PROPULSION (2) --- Compact Wheel > --- UTILITY (2) ------ Large Storage Unit Seismic Detector > --- WEAPON (2) ------- Light Assault Rifle Rocket Launcher > --- INVENTORY (15) --- Light Treads Aluminum Leg Wheel Flightbrick Huge Storage Unit Large Matter Pod (150) Terrain Scan Processor Improved EM Shotgun Improved EM Shotgun Rocket Launcher Subdweller Shrapnel Launcher Peak State ------------ > --- POWER ------------ (None) > --- PROPULSION ------- Compact Wheel Compact Wheel > --- UTILITY ---------- Large Storage Unit Seismic Detector > --- WEAPON ----------- Improved EM Shotgun Rocket Launcher > --- INVENTORY -------- Light Treads Aluminum Leg Wheel Flightbrick Huge Storage Unit Large Matter Pod Terrain Scan Processor Improved EM Shotgun Improved EM Shotgun Light Assault Rifle Rocket Launcher Subdweller Shrapnel Launcher [Rating: 14] Favorites ----------- Power Light Ion Engine Engine Light Ion Engine Propulsion Light Treads Treads Light Treads Wheel Compact Wheel Utility Seismic Detector Device Seismic Detector Storage Large Storage Unit Weapon Improved EM Shotgun Energy Gun Improved EM Shotgun Ballistic Gun Light Assault Rifle Launcher Rocket Launcher Build | -11 -10 -10 ------- Run | Yrd Mat Sub Slots Evolved . | . . . Power . | . . . Propulsion . | . . . Utility . | . . . Weapon . | . . . Parts Attached 30 | 7 12 11 Power 5 | 1 3 1 Engine 5 | 1 3 1 Core . | . . . Reactor . | . . . Propulsion 4 | 2 2 . Treads 2 | 2 . . Leg . | . . . Wheel 2 | . 2 . Hover . | . . . Flight . | . . . Utility 4 | 2 1 1 Device 2 | 1 . 1 Storage 2 | 1 1 . Processor . | . . . Hackware . | . . . Protection . | . . . Artifact . | . . . Weapon 17 | 2 6 9 Energy Gun 8 | . 4 4 Energy Cannon . | . . . Ballistic Gun 5 | 2 1 2 Ballistic Cannon . | . . . Launcher 4 | . 1 3 Special Weapon . | . . . Impact Weapon . | . . . Slashing Weapon . | . . . Piercing Weapon . | . . . Special Melee Weapon . | . . . Unidentified Prototypes 1 | . 1 . Parts Lost 8 | . 3 5 Power 3 | . 1 2 Propulsion 2 | . 1 1 Utility 1 | . 1 . Weapon 2 | . . 2 Highest Loss Streak 3 | . 2 3 To Critical Strikes . | . . . Average Slot Usage (%) 96 | . 97 94 Engine 12 | . 13 9 Treads 17 | . 26 . Wheel 10 | . 1 28 Device 13 | . 12 13 Storage 14 | . 14 14 Energy Gun 15 | . 11 23 Ballistic Gun 11 | . 16 2 Peak Build Rating 14 | 7 13 14 Average Rating 10 | 5 9 12 On Entrance 6 | . 7 12 Naked Turns . | . . . Heaviest Build 30 | 11 30 30 Greatest Support 40 | 40 40 32 Greatest Overweight (x) 1 | . 1 . Average Overweight (x) . | . . . Largest Inventory Capacity 15 | 8 15 15 Average Capacity 13 | 7 14 15 Most Carried 15 | 6 15 15 Average Carried 12 | 4 12 14 Final Capacity 15 | 8 15 15 Final Carried 15 | 6 15 14 Class Distribution -------------------- 100% | Mutant Dominant Class ---------------- Mutant | -10/Materials Mutant | -10/Subcaves Resources | -11 -10 -10 ----------- Run | Yrd Mat Sub Matter Collected 802 | 292 371 139 Remotely . | . . . Salvage Created 912 | 160 469 283 Parts 48 | 6 22 20 Haulers Intercepted . | . . . Recyclers Shooed . | . . . Parts Field Recycled . | . . . Retrieved Matter . | . . . Parts Self-Destructed 11 | . . 11 Prevented . | . . . Kills | -11 -10 -10 ------- Run | Yrd Mat Sub Combat Hostiles Destroyed 21 | . 13 8 Guns 15 | . 11 4 AOE 5 | . 2 3 Classes Destroyed 5 | 2 2 1 Tunneler 3 | 3 . . Recycler 1 | 1 . . Swarmer 6 | . 3 3 Grunt 10 | . 10 . Subdweller 5 | . . 5 Best Kill Streak 4 | 2 4 3 Combat Bots Only 4 | . 4 3 Max Kills in Single Turn 2 | 1 2 2 Gunslinging . | . . . Exploded 2 | . 2 2 Melee . | . . . Uniques/NPCs Destroyed . | . . . Combat | -11 -10 -10 -------- Run | Yrd Mat Sub Hostile Shots Fired 116 | . 64 52 Missed 34 | . 15 19 Damage Taken 1156 | . 594 562 Core 256 | . 78 178 Absorbed by Shields . | . . . Core Remaining (%) 100 | 100 . . Volleys Fired 90 | 12 45 33 Largest 2 | 2 2 2 Hottest 90 | 40 90 90 Shots Fired 159 | 22 89 48 Gun 146 | 22 88 36 Cannon . | . . . Launcher 13 | . 1 12 Special . | . . . Kinetic 101 | 22 74 5 Thermal . | . . . Explosive 13 | . 1 12 Electromagnetic 45 | . 14 31 Robot Hit Streak 33 | 7 19 33 Robot Miss Streak 4 | 1 4 3 Penetration Max . | . . . Secondary Targets 1 | . . 1 Max Gunslinging Chain 1 | . . 1 Shots Hit Robots 112 | 17 68 27 Core Hits 59 | 8 28 23 Critical Kills . | . . . Critical Parts Destroyed . | . . . Critical Strikes . | . . . Melee Attacks . | . . . Impact . | . . . Slashing . | . . . Piercing . | . . . Sneak Attacks . | . . . Combat Hostiles . | . . . Follow-up Attacks . | . . . Damage Inflicted 1734 | 134 728 872 Guns 1127 | 134 640 353 Cannons . | . . . Explosions 607 | . 88 519 Melee . | . . . Ramming . | . . . Kinetic 581 | 134 447 . Thermal 191 | . . 191 Explosive 416 | . 88 328 Electromagnetic 546 | . 193 353 Impact . | . . . Slashing . | . . . Piercing . | . . . Highest Corruption . | . . . Average Corruption . | . . . Corruption Purged . | . . . Corruption Blocked . | . . . Overload Shots . | . . . Overflow Damage 7 | . . 7 Projectiles . | . . . Explosions 7 | . . 7 Melee . | . . . Knockbacks . | . . . Impact . | . . . Kinetic . | . . . Secondary . | . . . Self-Inflicted Damage 179 | . . 179 Shots 4 | . . 4 Rammed . | . . . Targets Rammed . | . . . Kicked . | . . . Crushed . | . . . Highest Temperature 78 | . 78 2 Average Temperature 18 | . 19 2 Received Heat Transfer 495 | . 339 156 Siege Activations . | . . . Robots Corrupted 1 | . . 1 Combat Hostiles 1 | . . 1 Parts Fried 5 | . 1 4 Impact Corruptions . | . . . Robots Melted . | . . . Combat Hostiles . | . . . Parts Melted . | . . . Heat Transferred 150 | . . 150 Parts Sabotaged . | . . . Parts Stolen . | . . . Parts Stripped . | . . . Power Chain Reactions 1 | . . 1 Alert | -11 -10 -10 ------- Run | Yrd Mat Sub Peak Influence 149 | 20 149 . Initial 13 | . 13 . Average 52 | 9 58 . Maximum Alert Level . | . . . Low Security (%) 100 | 100 100 . Level 1 . | . . . Level 2 . | . . . Level 3 . | . . . Level 4 . | . . . Level 5 . | . . . High Security . | . . . Max Security . | . . . Squads Dispatched 3 | . 3 . Investigation 2 | . 2 . Extermination . | . . . Reinforcement 1 | . 1 . Assault . | . . . Garrison . | . . . Intercept . | . . . Searches Triggered . | . . . Construction Impeded . | . . . Haulers Reinforced . | . . . Active Scanning Responses . | . . . Cargo Convoy Interrupts . | . . . Stealth | -11 -10 -10 --------- Run | Yrd Mat Sub Distress Signals 1 | . 1 . Communications Jammed . | . . . Distress Signals . | . . . Times Spotted 38 | . 25 13 Peak Tracking Total 6 | . 5 6 Tactical Retreats 5 | . 1 4 Traps | -11 -10 -10 ------- Run | Yrd Mat Sub Traps Triggered 3 | . 3 . Indirectly . | . . . Trap Hack Attempts . | . . . Triggered . | . . . Disarmed . | . . . Reprogrammed . | . . . Reused . | . . . Traps Extracted . | . . . Installed . | . . . Triggered . | . . . Machines | -11 -10 -10 ---------- Run | Yrd Mat Sub Machines Disabled 8 | . 1 7 Max in Single Turn 3 | . 1 3 Machines Repaired . | . . . Machines Dismantled . | . . . Machines Sabotaged . | . . . Overloaded Fab Kills . | . . . Hacking | -11 -10 -10 --------- Run | Yrd Mat Sub Machines Accessed 6 | . 5 1 Terminals 5 | . 5 . Fabricators . | . . . Repair Stations . | . . . Recycling Units . | . . . Scanalyzers . | . . . Garrison Access . | . . . Total Hacks 18 | . 9 9 Successful 12 | . 3 9 Failed 6 | . 6 . Catastrophic . | . . . Database Lockouts . | . . . Manual 10 | . 10 . Terminals 9 | . 9 . Fabricators . | . . . Repair Stations . | . . . Recycling Units . | . . . Scanalyzers . | . . . Garrison Access . | . . . Terminal Hacks 10 | . 1 9 Record 8 | . . 8 Recall Reinforcements 1 | . 1 . Derelict Proto ID Bank 1 | . . 1 Fabricator Hacks . | . . . Repair Station Hacks . | . . . Recycling Unit Hacks . | . . . Scanalyzer . | . . . Garrison Access Hacks . | . . . Unauthorized Hacks 2 | . 2 . Terminals 2 | . 2 . Botnet 2 | . 2 . Fabricators . | . . . Repair Stations . | . . . Recycling Units . | . . . Scanalyzers . | . . . Garrison Access . | . . . Data Cores Recovered . | . . . Used . | . . . Hacking Detections 5 | . 5 . Full Trace Events . | . . . Feedback Events . | . . . Feedback Blocked . | . . . Robot Schematics Acquired . | . . . Robots Built . | . . . Authchips . | . . . Time . | . . . Total Robot Build Rating . | . . . Part Schematics Acquired . | . . . Parts Built . | . . . Authchips . | . . . Time . | . . . Total Part Build Rating . | . . . Parts Repaired . | . . . Time . | . . . Parts Recycled . | . . . Recycled Matter . | . . . Retrieved Matter . | . . . Retrieved Components . | . . . Parts Scanalyzed . | . . . Part Schematics Acquired . | . . . Parts Damaged . | . . . Bothacking | -11 -10 -10 ------------ Run | Yrd Mat Sub Used RIF Installer . | . . . Robots Hacked . | . . . Non-combat . | . . . Combat . | . . . Robot Hacks Applied . | . . . Relay Couplers Released . | . . . Fabnet Peak Effective % . | . . . Robots Rewired . | . . . Allies Hacked . | . . . Hacks Repelled . | . . . Allies | -11 -10 -10 -------- Run | Yrd Mat Sub Total Allies . | . . . Largest Group . | . . . Highest-Rated Group . | . . . Highest-Rated Ally . | . . . Total Orders . | . . . Ally Attacks . | . . . Total Damage . | . . . Kills . | . . . Allies Corrupted . | . . . Allies Melted . | . . . Intel | -11 -10 -10 ------- Run | Yrd Mat Sub Robot Analysis Total . | . . . Derelict Logs Recovered 1 | . . 1 Drone Launches . | . . . Drone Recoveries . | . . . Exploration | -11 -10 -10 ------------- Run | Yrd Mat Sub Turns Passed 2070 | 167 1265 638 Spaces Moved 1232 | 78 646 508 Core 5 | 5 . . Treads 674 | 73 601 . Legs . | . . . Wheels 553 | . 45 508 Hover . | . . . Flight . | . . . Fastest Speed 50 | 50 100 100 Average Speed 133 | 152 157 100 Slowest Speed 240 | 160 240 100 Overloaded Moves . | . . . Propulsion Burnouts . | . . . Robots Hopped . | . . . Cave-ins Triggered . | . . . Exploration Rate (%) 39 | 4 89 25 Regions Visited 2 Branch Regions 1 Pre-discovered Areas 2 | . . 2 Known Exits Taken . | . . . Unknown Exits Taken 2 | 1 1 . Scrap Searched . | . . . Spaces Dug . | . . . Terrain Destroyed 58 | . 1 57 Melee . | . . . Projectile . | . . . AOE 58 | . 1 57 Terrain Rammed . | . . . Walls Destroyed . | . . . Machines Disabled . | . . . Actions | -11 -10 -10 --------- Run | Yrd Mat Sub Total 1516 | 106 820 590 Wait 130 | . 96 34 Move 1230 | 77 645 508 Hop . | . . . Pick Up 26 | 9 15 2 Fast Attach 9 | 5 4 . Attach 8 | 2 2 4 Detach . | . . . Swap 13 | . 6 7 Drop 10 | 1 7 2 Fire 90 | 12 45 33 Melee . | . . . Ram . | . . . Kick . | . . . Crush . | . . . Escape Stasis . | . . . Rewire . | . . . Trap . | . . . Miscellaneous . | . . . Route ------- -11/Scrapyard -10/Materials (discovered 3 exits: [*Mat x2] / *Sub) -10/Subcaves (discovered 3 exits: [*Mat x2] / [*Rec]) History --------- Turn | Location | Event 5 | -11/Scrapyard | Discovered new exit (range 13) 168 | -11/Scrapyard | Entered Materials 302 | -10/Materials | Build established: Mutant 415 | -10/Materials | Discovered new exit (range 3) 939 | -10/Materials | Discovered new exit (range 5) 1406 | -10/Materials | Discovered new exit (range 12) 1433 | -10/Materials | Entered Subcaves 1585 | -10/Subcaves | Discovered new exit (range 7) 1588 | -10/Subcaves | Learned location of Zion (-6) 1588 | -10/Subcaves | Met a Zionite searching for "candidates" 1741 | -10/Subcaves | Discovered new exit (range 7) 1854 | -10/Subcaves | Visited 4L-MR0's lab 1862 | -10/Subcaves | Core integrity fell below 50% 1896 | -10/Subcaves | Lost 3 parts (2p1w) 1954 | -10/Subcaves | Found Flightbrick 2031 | -10/Subcaves | Discovered new exit (range 15) 2042 | -10/Subcaves | Core integrity fell below 20% 2071 | -10/Subcaves | Destroyed self with Rocket Launcher Last Messages --------------- Disposable Heat Sink. 01973_ Acquired 20 matter. 02031_ EXIT=FOUND 02032_ Imp. EM Shotgun destroyed. 02038_ S-10 Pest destroyed. 02041_ The unstable cave ceiling collapses. 02041_ S-10 Pest destroyed. 02043_ Lgt. Assault Rifle fries itself beyond repair. 02046_ Lgt. Ion Engine fries itself beyond repair. 02047_ Subatomizers dissect the Lgt. Ion Engine. 02048_ Machine disabled. 02055_ Lgt. Assault Rifle fries itself beyond repair. 02055_ Lgt. Ion Engine fries itself beyond repair. 02059_ The unstable cave ceiling collapses. 02071_ Com. Wheel destroyed. 02071_ Destroyed Com. Wheel. Map ----- +----------------------------------------------------+ | ??????????????????????????????????????#!# "#?????# | | ??????????????????????????????????????#= #?##### | | ??????????????????????????????????????# #?# #" | | ??????????????????????????????????????# #?# | | ??????????????????????????????????????# #?# !! | | ??????????????????????????????????????# &!#?#&%#" | | ??????????????????????????????????????###%#####!## | | ?????????????????????????????????????##" #"&^%# | | ?????????????????????????????????????# " &!&# | | ????????????????????#????????????????# """ " &!# | | ???????????????????## ???###?????????# " " """ "## | | ???????????????????? ##?# #?????????##"""" ""#### | | ????????????????????? ## #??????????#########?## | | ???????????????###???## ####???????# #### #?## | | ??????????????## ??? #???????# #?# | | ?????????????## ????# #????#### ### | | ?????????????# ??## #???### # ## | | ???????? ## ### #???# | | ????????? #???# # | | ??????????????# ##??## ## # ## ## | | ??????????????## % #??# ############? | | ??????????????# ## ##### ##??????# # | | ??????????????## ?## ### ### ## ##### | | ?????????????## # ### ## | | ?????????????# | | ?????????????# ## #@ ## | | ?????????????# ## # ## ## ## | | ??????????????? #?## ###### ##???## | | ?????????????? ???# ##### ##????? ##?????# | | ???????????? ??? #???####?????? #??????# | | ??????????? #??# ????????????? ##??##### | | ??????????? ???# ??????????????##??##""## | | ??????????? ????## ?????????????????##"""" | | ????????????????# t ?????????????????#"""""" | | ???????????????? " ????????????????##""""" | | ??????????????? # ""????????????????# ""< | | ??????????????